fUST/lending_fUST_20240312
["ID","MTS","AMOUNT","RATE_DAILY","PERIOD"]
[318355955,1710195033915,-592.4,0.00015499,2]
[318355956,1710195033924,-592.4,0.00015499,2]
[318355957,1710195033934,-592.4,0.00015499,2]
[318355958,1710195033944,-203.92783532,0.00015499,2]
[318355959,1710195033956,-388.47216468,0.00015499,2]
[318355960,1710195033966,-592.4,0.00015499,2]
[318355961,1710195033976,-526.11604801,0.00015499,2]
[318355962,1710195033987,-66.28395199,0.00015499,2]
[318355963,1710195034094,-592.4,0.00015499,2]
[318355964,1710195034104,-592.4,0.00015499,2]
[318355965,1710195034113,-592.4,0.00015499,2]
[318355966,1710195034123,-592.4,0.00015499,2]
[318355967,1710195034132,-592.4,0.00015499,2]
[318355968,1710195034141,-592.4,0.00015499,2]
[318355969,1710195034150,-592.42,0.00015499,2]
[318355970,1710195034160,-500.0,0.00015499,2]
[318355971,1710195034169,-500.0,0.00015499,2]
[318355972,1710195034178,-500.0,0.00015499,2]
[318355973,1710195034187,-500.0,0.00015499,2]
[318355974,1710195034197,-500.0,0.00015499,2]
[318355975,1710195034206,-500.0,0.00015499,2]
[318355976,1710195034217,-500.0,0.00015499,2]
[318355977,1710195034228,-500.0,0.00015499,2]
[318355978,1710195034249,-500.0,0.00015499,2]
[318355979,1710195034258,-500.0,0.00015499,2]
[318355980,1710195034267,-500.0,0.00015499,2]
[318355981,1710195034278,-500.0,0.00015499,2]
[318355982,1710195034288,-500.0,0.00015499,2]
[318355983,1710195034297,-500.0,0.00015499,2]
[318355984,1710195034306,-500.0,0.00015499,2]
[318355985,1710195034316,-500.0,0.00015499,2]
[318355986,1710195034325,-500.0,0.00015499,2]
[318355987,1710195034336,-500.0,0.00015499,2]
[318355988,1710195034349,-354.11,0.00015499,2]
[318355989,1710195034370,-500.0,0.00015499,2]
[318355990,1710195034380,-500.0,0.00015499,2]
[318355991,1710195034391,-500.0,0.00015499,2]
[318355992,1710195034400,-500.0,0.00015499,2]
[318355993,1710195034409,-500.0,0.00015499,2]
[318355994,1710195034419,-500.0,0.00015499,2]
[318355995,1710195034430,-500.0,0.00015499,2]
[318355996,1710195034440,-500.0,0.00015499,2]
[318355997,1710195034450,-500.0,0.00015499,2]
[318355998,1710195034459,-500.0,0.00015499,2]
[318355999,1710195034469,-423.808838,0.00015499,2]
[318356000,1710195034484,-76.191162,0.00015499,2]
[318356001,1710195034493,-500.0,0.00015499,2]
[318356002,1710195034503,-500.0,0.00015499,2]
[318356003,1710195034512,-500.0,0.00015499,2]
[318356004,1710195034524,-500.0,0.00015499,2]
[318356005,1710195034533,-500.0,0.00015499,2]
[318356006,1710195034542,-500.0,0.00015499,2]
[318356007,1710195034552,-461.78,0.00015499,2]
[318356008,1710195034561,-500.0,0.00015499,2]
[318356009,1710195034570,-500.0,0.00015499,2]
[318356010,1710195034579,-500.0,0.00015499,2]
[318356011,1710195034589,-500.0,0.00015499,2]
[318356012,1710195034598,-192.54,0.00015499,2]
[318356013,1710195034607,-254.72782391,0.00015499,2]
[318356014,1710195034616,-500.0,0.00015499,2]
[318356015,1710195034626,-500.0,0.00015499,2]
[318356016,1710195034635,-500.0,0.00015499,2]
[318356017,1710195034645,-500.0,0.00015499,2]
[318356018,1710195034654,-500.0,0.00015499,2]
[318356019,1710195034664,-500.0,0.00015499,2]
[318356020,1710195034673,-500.0,0.00015499,2]
[318356021,1710195034682,-500.0,0.00015499,2]
[318356022,1710195034691,-500.0,0.00015499,2]
[318356023,1710195034700,-500.0,0.00015499,2]
[318356024,1710195034709,-500.0,0.00015499,2]
[318356025,1710195034718,-2710.68169243,0.000155,2]
[318356026,1710195034969,-51318.56619587,0.000155,2]
[318356045,1710195038060,-500.0,0.00015499,2]
[318356046,1710195038070,-500.0,0.00015499,2]
[318356047,1710195038080,-500.0,0.00015499,2]
[318356048,1710195038089,-532.03,0.00015499,2]
[318356049,1710195038099,-32752.40545165,0.000155,2]
[318356191,1710195043073,-533.58561713,0.000155,2]
[318357862,1710195793102,-895.8824428,0.00014197,2]
[318357863,1710195793136,-300.0,0.00014224,2]
[318357864,1710195793170,-15158.98261103,0.00014225,2]
[318357865,1710195806303,-9741.01738897,0.00014225,2]
[318357866,1710195806335,-283.972394,0.00014438,2]
[318357867,1710195806366,-512.56,0.000145,7]
[318357868,1710195855610,5817.31527086,0.00014498,2]
[318357954,1710196232810,-400.9299127,0.00014324,2]
[318357956,1710196232819,-24900.0,0.00014433,2]
[318357958,1710196232829,-12572.38467504,0.00014498,2]
[318357959,1710196232838,-283.972394,0.00014498,2]
[318357960,1710196232847,-1000.0,0.00014995,2]
[318357961,1710196232856,-701.31510786,0.00015062,2]
[318357962,1710196232865,-651.74368271,0.00015238,2]
[318357963,1710196232874,-205.15916612,0.00015497,2]
[318357964,1710196232883,-502.65166085,0.00015497,2]
[318357966,1710196232892,-500.0,0.00015497,2]
[318357968,1710196232901,-500.0,0.00015497,2]
[318357970,1710196232910,-500.0,0.00015497,2]
[318357972,1710196232919,-500.0,0.00015497,2]
[318357974,1710196232927,-500.0,0.00015497,2]
[318357976,1710196232936,-500.0,0.00015497,2]
[318357978,1710196232945,-500.0,0.00015497,2]
[318357980,1710196232954,-500.0,0.00015497,2]
[318357982,1710196232964,-500.0,0.00015497,2]
[318357984,1710196232972,-500.0,0.00015497,2]
[318357986,1710196232982,-500.0,0.00015497,2]
[318357988,1710196232991,-500.0,0.00015497,2]
[318357990,1710196233000,-463.82339304,0.00015497,2]
[318357992,1710196233009,-500.0,0.00015497,2]
[318357994,1710196233018,-398.72297081,0.00015497,2]
[318357996,1710196233027,-500.0,0.00015497,2]
[318357997,1710196233036,-155.13807288,0.00015498,2]
[318357999,1710196233045,-179.69289793,0.00015498,2]
[318358001,1710196233054,-558.12234443,0.00015498,2]
[318358002,1710196233063,-710.32121126,0.00015498,2]
[318358003,1710196233073,-1473.66141674,0.00015498,2]
[318358004,1710196233083,-538.93657172,0.00015498,2]
[318358005,1710196233092,-165.65027406,0.00015498,2]
[318358006,1710196233101,-668.93854649,0.00015498,2]
[318358007,1710196233110,-155.88805604,0.00015498,2]
[318358008,1710196233119,-211.93787119,0.00015498,2]
[318358009,1710196233129,-8769.75165174,0.00015498,2]
[318358010,1710196233143,-3833.55920895,0.00015498,2]
[318358011,1710196233152,-171.04775531,0.00015498,2]
[318358012,1710196233162,-155.20285712,0.00015498,2]
[318358013,1710196233171,-290.38682753,0.00015498,2]
[318358014,1710196233180,-788.69265613,0.00015498,2]
[318358015,1710196233194,-2354.34875354,0.00015498,2]
[318358016,1710196233203,-12160.33158705,0.00015498,2]
[318358017,1710196233215,-14428.16358342,0.00015498,2]
[318358018,1710196233224,-227.08924208,0.00015498,2]
[318358019,1710196233235,-142.35470806,0.00015498,2]
[318358020,1710196233245,-500.0,0.00015498,2]
[318358021,1710196233254,-500.40130322,0.00015498,2]
[318358022,1710196233263,-500.0,0.00015498,2]
[318358023,1710196233272,-500.0,0.00015498,2]
[318358024,1710196233282,-500.56926419,0.00015498,2]
[318358025,1710196233292,-500.0,0.00015498,2]
[318358026,1710196233301,-500.0,0.00015498,2]
[318358027,1710196233310,-211.41659541,0.00015498,2]
[318358028,1710196233318,-500.0,0.00015498,2]
[318358029,1710196233329,-500.0,0.00015498,2]
[318358030,1710196233339,-500.0,0.00015498,2]
[318358031,1710196233349,-155.03255684,0.00015498,2]
[318358032,1710196233358,-500.0,0.00015498,2]
[318358033,1710196233367,-500.0,0.00015498,2]
[318358034,1710196233377,-2114.85760717,0.00015499,2]
[318358035,1710196233386,-1080.91906796,0.00015499,2]
[318358036,1710196233395,-20504.55331016,0.00015499,2]
[318358037,1710196233405,-500.0,0.00015499,2]
[318358038,1710196233414,-500.0,0.00015499,2]
[318358039,1710196233423,-420.44190101,0.00015499,2]
[318358040,1710196233433,-500.0,0.00015499,2]
[318358041,1710196233442,-500.48159843,0.00015499,2]
[318358042,1710196233451,-500.0,0.00015499,2]
[318358043,1710196233461,-500.0,0.00015499,2]
[318358044,1710196233470,-500.0,0.00015499,2]
[318358045,1710196233479,-500.0,0.00015499,2]
[318358046,1710196233488,-500.0,0.00015499,2]
[318358047,1710196233590,-500.0,0.00015499,2]
[318358048,1710196233601,-500.0,0.00015499,2]
[318358049,1710196233610,-500.0,0.00015499,2]
[318358050,1710196233620,-500.0,0.00015499,2]
[318358051,1710196233629,-500.0,0.00015499,2]
[318358052,1710196233638,-459.02283418,0.00015499,2]
[318358053,1710196233647,-500.0,0.00015499,2]
[318358054,1710196233656,-47796.44778327,0.000155,2]
[318358055,1710196233669,-481.94540071,0.000155,2]
[318358056,1710196233683,-29072.0,0.000155,2]
[318358106,1710196238203,-111639.77585908,0.000155,2]
[318358108,1710196238214,-726.88,0.000155,2]
[318358308,1710196240213,-72687.71200003,0.000155,2]
[318358597,1710196243223,-15463.55718006,0.000155,2]
[318359177,1710196511852,466.13,0.00027,120]
[318359178,1710196720226,649.63,0.00027,120]
[318359179,1710196735321,-8248.4216025,0.00014498,2]
[318359180,1710196735353,-236.27824754,0.00014498,2]
[318359181,1710196735387,-7870.16520379,0.00014559,2]
[318359182,1710196740063,-16354.86505383,0.00014559,2]
[318359240,1710197432341,-3499.43716363,0.00014558,2]
[318359242,1710197432351,-199.1167289,0.00014559,2]
[318359244,1710197432360,-3995.69385148,0.00014559,2]
[318360038,1710197440357,-9237.60545272,0.00014559,2]
[318360040,1710197440367,-2554.54,0.00015097,5]
[318360042,1710197440376,-290.38104745,0.00015397,7]
[318360044,1710197440385,-8188.17715832,0.000154,2]
[318360046,1710197440394,-620.06581708,0.00015455,2]
[318360048,1710197440403,-321.99580067,0.00015498,2]
[318360050,1710197440413,-704.15336957,0.00015499,2]
[318360052,1710197440422,-155.10702385,0.00015499,2]
[318360054,1710197440431,-143037.89279493,0.000155,2]
[318360056,1710197440444,-26209.40392882,0.000155,2]
[318360059,1710197440455,-90606.69093963,0.000155,2]
[318360212,1710197443528,-7526.6319178,0.000155,2]
[318360213,1710197443540,-34208.37257126,0.000155,2]
[318360236,1710197446478,-362.53539744,0.00015499,2]
[318360322,1710198633541,-2064.75253051,0.00014398,2]
[318360323,1710198633559,-3487.30546547,0.00014398,2]
[318360324,1710198633569,-982.33268087,0.00014399,2]
[318360340,1710198638452,-1300.0494312,0.00014406,2]
[318360341,1710198638462,-270.87621218,0.00014462,2]
[318360344,1710198640564,-2371.33754972,0.00014462,2]
[318360345,1710198640574,-2001.22760533,0.00015,2]
[318360347,1710198640586,-5000.0,0.00015033,2]
[318360348,1710198640597,-1080.91906796,0.00015498,2]
[318360349,1710198640609,-179.69289793,0.00015498,2]
[318360350,1710198640619,-321.93735775,0.00015498,2]
[318360352,1710198640631,-1951.55607231,0.00015498,2]
[318360354,1710198640641,-356.08769832,0.00015498,2]
[318360355,1710198640652,-690.59173185,0.00015498,2]
[318360357,1710198640663,-136.25099808,0.00015499,2]
[318360358,1710198640673,-262.77802159,0.00015499,7]
[318360359,1710198640683,-10990.69389818,0.000155,2]
[318360365,1710198646691,-1500.28405,0.00015499,2]
[318360388,1710199083228,-400.8611621,0.0001416,2]
[318360389,1710199083260,-3084.47666444,0.00014303,2]
[318360390,1710199083279,-400.8611621,0.00014304,2]
[318360391,1710199083291,-3084.47666444,0.00014304,2]
[318360392,1710199083303,-12582.32434692,0.00014304,2]
[318360497,1710199832771,-0.25683155,0.00012962,2]
[318360499,1710199832784,-677.98507205,0.00012962,2]
[318360501,1710199832795,-179.75548082,0.00013093,2]
[318360503,1710199832807,-3084.47666444,0.00013093,2]
[318360505,1710199832818,-2115.55183871,0.00013093,2]
[318360507,1710199832827,-806.23898759,0.00013094,2]
[318360509,1710199832836,-250.0,0.00013095,2]
[318360511,1710199832846,-1686.5455876,0.00013142,2]
[318360513,1710199832855,-8873.86799085,0.00013267,2]
[318360516,1710199832871,-4409.24274875,0.00013267,2]
[318360518,1710199832881,-174.466728,0.00013699,2]
[318360520,1710199832891,-310.22802413,0.00015343,2]
[318360522,1710199832903,-36.06881492,0.000154,2]
[318360524,1710199832915,-946.81922196,0.000154,2]
[318360734,1710199842387,-29077.26957415,0.000154,2]
[318360736,1710199842397,-153.0,0.000154,2]
[318360738,1710199842406,-153.0,0.000154,2]
[318360740,1710199842417,-153.0,0.000154,2]
[318360743,1710199842426,-313.2560595,0.000154,2]
[318360746,1710199842435,-1422.57228584,0.000154,2]
[318360748,1710199842444,-620.00329086,0.00015416,2]
[318360750,1710199842453,-3457.32948494,0.0001548,2]
[318360752,1710199842462,-1785.76643898,0.00015483,2]
[318360754,1710199842471,-155.15515516,0.00015483,2]
[318360756,1710199842479,-155.94121412,0.00015498,2]
[318360758,1710199842488,-1080.91906796,0.00015498,2]
[318360760,1710199842497,-668.6971275,0.00015498,2]
[318360762,1710199842506,-289.8851299,0.00015498,2]
[318360764,1710199842515,-177.67761353,0.00015498,2]
[318360766,1710199842524,-590.38302196,0.00015498,2]
[318360768,1710199842533,-411.57462861,0.00015498,2]
[318360770,1710199842545,-690.59173185,0.00015498,2]
[318360772,1710199842554,-204.73653582,0.00015498,2]
[318360774,1710199842563,-429.31792098,0.00015498,2]
[318360776,1710199842573,-524.47552081,0.00015498,2]
[318360778,1710199842582,-191.54405702,0.00015498,2]
[318360780,1710199842591,-380.69748174,0.00015498,2]
[318360782,1710199842600,-558.3857874,0.00015498,2]
[318360784,1710199842609,-160.37161933,0.00015498,2]
[318360786,1710199842618,-212.04319387,0.00015498,2]
[318360788,1710199842627,-326.65088458,0.00015498,2]
[318360790,1710199842636,-500.0,0.00015498,2]
[318360792,1710199842646,-500.0,0.00015498,2]
[318360794,1710199842654,-500.0,0.00015499,2]
[318360796,1710199842665,-500.0,0.00015499,2]
[318360798,1710199842674,-500.0,0.00015499,2]
[318360800,1710199842683,-500.0,0.00015499,2]
[318360802,1710199842692,-500.0,0.00015499,2]
[318360804,1710199842701,-500.0,0.00015499,2]
[318360806,1710199842712,-500.0,0.00015499,2]
[318360808,1710199842723,-500.0,0.00015499,2]
[318360810,1710199842732,-500.0,0.00015499,2]
[318360811,1710199842741,-500.0,0.00015499,2]
[318360812,1710199842750,-500.0,0.00015499,2]
[318360813,1710199842760,-500.0,0.00015499,2]
[318360814,1710199842768,-500.0,0.00015499,2]
[318360815,1710199842777,-500.0,0.00015499,2]
[318360816,1710199842786,-500.0,0.00015499,2]
[318360817,1710199842795,-500.0,0.00015499,2]
[318360818,1710199842804,-500.0,0.00015499,2]
[318360819,1710199842813,-500.0,0.00015499,2]
[318360820,1710199842822,-500.0,0.00015499,2]
[318360821,1710199842831,-500.0,0.00015499,2]
[318360822,1710199842840,-500.0,0.00015499,2]
[318360823,1710199842849,-615.50266293,0.00015499,2]
[318360824,1710199842858,-162.23429621,0.00015499,2]
[318360825,1710199842866,-151.0,0.00015499,2]
[318360826,1710199842875,-500.0,0.00015499,2]
[318360828,1710199842884,-500.13542173,0.00015499,2]
[318360830,1710199842894,-246.85326403,0.00015499,2]
[318360832,1710199842903,-500.0,0.00015499,2]
[318360834,1710199842912,-500.0,0.00015499,2]
[318360836,1710199842922,-500.0,0.00015499,2]
[318360838,1710199842931,-500.0,0.00015499,2]
[318360840,1710199842940,-500.0,0.00015499,2]
[318360842,1710199842950,-500.0,0.00015499,2]
[318360844,1710199842959,-500.0,0.00015499,2]
[318360847,1710199842968,-500.0,0.00015499,2]
[318360848,1710199842979,-500.0,0.00015499,2]
[318360850,1710199842989,-500.0,0.00015499,2]
[318360852,1710199842998,-500.0,0.00015499,2]
[318360854,1710199843007,-494.1024788,0.00015499,2]
[318360856,1710199843017,-500.0,0.00015499,2]
[318360858,1710199843027,-500.0,0.00015499,2]
[318360860,1710199843037,-500.0,0.00015499,2]
[318360862,1710199843046,-500.0,0.00015499,2]
[318360865,1710199843056,-500.0,0.00015499,2]
[318360867,1710199843065,-500.0,0.00015499,2]
[318360868,1710199843076,-500.0,0.00015499,2]
[318360870,1710199843085,-500.0,0.00015499,2]
[318360872,1710199843095,-500.0,0.00015499,2]
[318360874,1710199843104,-219.55,0.00015499,2]
[318360877,1710199843113,-9713.51692534,0.000155,2]
[318360968,1710199843786,-1355.43412393,0.000155,2]
[318361702,1710200027985,42916.0,0.00027,120]
[318361782,1710201031947,-327.96493035,0.00014414,2]
[318361784,1710201031956,-145.86921992,0.00014414,2]
[318361786,1710201031968,-935.22731894,0.00014414,2]
[318361788,1710201031977,-806.23898759,0.00014415,2]
[318361790,1710201031986,-179.75548082,0.00014416,2]
[318361793,1710201031995,-187.900717,0.00014449,2]
[318361795,1710201032005,-186.9741541,0.000153,2]
[318361797,1710201032014,-321.88357112,0.00015498,2]
[318361799,1710201032023,-554.713629,0.00015498,2]
[318361801,1710201032032,-15243.32856281,0.00015498,2]
[318361803,1710201032044,-3606.05,0.00015498,2]
[318361806,1710201032056,-28816.05160577,0.00015498,2]
[318361808,1710201032064,-909.40931501,0.00015499,2]
[318361810,1710201032073,-15260.91521873,0.00015499,2]
[318361812,1710201032083,-77532.03813476,0.000155,2]
[318362271,1710201036862,1452.1,0.00027,120]
[318362280,1710201037871,-1607.01234217,0.00014413,2]
[318362282,1710201037881,-1569.5399232,0.000155,2]
[318362950,1710202232401,-806.23898759,0.00014259,2]
[318362951,1710202232411,-429.31792098,0.00014259,2]
[318362952,1710202232421,-170.86972871,0.0001426,2]
[318362953,1710202232431,-1607.01234217,0.00014261,2]
[318362954,1710202232442,-13285.92467073,0.00014264,2]
[318362955,1710202232458,-394.70362969,0.00014264,2]
[318363006,1710202238013,-2834.10796088,0.00014264,2]
[318363008,1710202238022,-187.900717,0.00014499,2]
[318363010,1710202238031,-620.92580168,0.00015377,2]
[318363012,1710202238040,-300.0,0.00015497,2]
[318363014,1710202238049,-179.60078019,0.00015498,2]
[318363016,1710202238058,-1882.13371677,0.00015498,2]
[318363018,1710202238067,-280.59398079,0.00015498,2]
[318363020,1710202238077,-690.59173185,0.00015498,2]
[318363022,1710202238086,-1363.4326582,0.00015498,5]
[318363024,1710202238095,-1080.91906796,0.00015499,2]
[318363026,1710202238104,-500.0,0.00015499,2]
[318363028,1710202238113,-445.36918399,0.00015499,2]
[318363030,1710202238123,-93761.45090094,0.000155,2]
[318363922,1710202247293,-234.45,0.00015499,2]
[318363924,1710202247302,-429.31792098,0.00015499,2]
[318363926,1710202247311,-802.44191591,0.00015499,2]
[318363929,1710202247325,-804.57042626,0.00015499,2]
[318363931,1710202247334,-2740.14640477,0.000155,2]
[318370110,1710202819970,-170.86972871,0.00014389,2]
[318370111,1710202820006,-1607.01234217,0.00014389,2]
[318370112,1710202820045,-8497.7530163,0.0001439,2]
[318370113,1710202820084,-261.518711,0.00014541,2]
[318370114,1710202820123,-5000.0,0.00015033,2]
[318370115,1710202820158,-462.84620182,0.00015299,2]
[318370339,1710203438288,-170.86972871,0.00014321,2]
[318370340,1710203438298,-1607.01234217,0.00014321,2]
[318370341,1710203438307,-494.44138683,0.00014322,2]
[318370342,1710203438317,-2464.02679265,0.00014424,2]
[318370528,1710203443597,-359.94222037,0.00014424,2]
[318370530,1710203443609,-12634.91795178,0.00014424,2]
[318370531,1710203443619,-1383.0,0.00014479,2]
[318370533,1710203443628,-261.518711,0.00014479,2]
[318370534,1710203443637,-23684.21806708,0.00015,2]
[318370536,1710203443646,-15952.47806843,0.00015299,2]
[318370538,1710203443656,-176.46034309,0.000153,2]
[318370541,1710203443676,-788.72892602,0.000154,2]
[318370542,1710203443686,-179.69289793,0.00015498,2]
[318370544,1710203443696,-783.51646882,0.00015499,2]
[318370546,1710203443705,-500.0,0.00015499,2]
[318370548,1710203443715,-500.0,0.00015499,2]
[318370550,1710203443725,-500.0,0.00015499,2]
[318370552,1710203443734,-500.0,0.00015499,2]
[318370554,1710203443744,-500.0,0.00015499,2]
[318370556,1710203443755,-500.0,0.00015499,2]
[318370557,1710203443766,-500.0,0.00015499,2]
[318370559,1710203443776,-500.0,0.00015499,2]
[318370561,1710203443786,-500.0,0.00015499,2]
[318370563,1710203443795,-500.0,0.00015499,2]
[318370564,1710203443806,-500.0,0.00015499,2]
[318370566,1710203443815,-500.0,0.00015499,2]
[318370568,1710203443824,-500.0,0.00015499,2]
[318370570,1710203443834,-500.0,0.00015499,2]
[318370572,1710203443844,-500.0,0.00015499,2]
[318370574,1710203443854,-500.0,0.00015499,2]
[318370576,1710203443863,-500.0,0.00015499,2]
[318370578,1710203443873,-500.0,0.00015499,2]
[318370579,1710203443882,-500.0,0.00015499,2]
[318370581,1710203443892,-500.0,0.00015499,2]
[318370583,1710203443901,-195.8126,0.00015499,2]
[318370585,1710203443910,-16281.58449607,0.000155,2]
[318370915,1710204211848,234.0,0.00027,120]
[318370945,1710204634771,-170.86972871,0.00015298,2]
[318370946,1710204634780,-1607.01234217,0.00015298,2]
[318370947,1710204634790,-8943.62374455,0.00015299,2]
[318370948,1710204634799,-620.04629008,0.00015339,2]
[318370949,1710204634808,-669.3132951,0.00015499,2]
[318370950,1710204634817,-5907.27838788,0.000155,2]
[318371467,1710204643461,-3147.24480585,0.000155,2]
[318371517,1710204643905,-6911.1144642,0.000155,2]
[318371519,1710204643917,-978.52984949,0.000155,2]
[318372239,1710205833512,-170.86972871,0.00013667,2]
[318372240,1710205833522,-382.7424153,0.00013668,2]
[318372241,1710205833532,-216.052246,0.00013784,2]
[318372242,1710205833541,-1607.01234217,0.00013862,2]
[318372243,1710205833550,-306.7556832,0.00013863,2]
[318372244,1710205833559,-394.6343934,0.00014206,2]
[318372245,1710205833569,-674.0054691,0.00014206,2]
[318372246,1710205833578,-176.46034309,0.00014227,2]
[318372247,1710205833587,-300.0,0.00014326,2]
[318372248,1710205833597,-8371.43418262,0.00014327,2]
[318372251,1710205833619,-8735.56581738,0.00014327,2]
[318372253,1710205833628,-3499.43716363,0.00014665,2]
[318372255,1710205833638,-788.72892602,0.000154,2]
[318372257,1710205833647,-276.70436895,0.000154,2]
[318372259,1710205833656,-179.69289793,0.00015499,2]
[318372261,1710205833665,-783.51646882,0.00015499,2]
[318372263,1710205833675,-404.45303566,0.00015499,2]
[318372265,1710205833684,-500.0,0.00015499,2]
[318372267,1710205833693,-500.0,0.00015499,2]
[318372269,1710205833702,-500.0,0.00015499,2]
[318372271,1710205833710,-500.0,0.00015499,2]
[318372273,1710205833720,-500.0,0.00015499,2]
[318372274,1710205833736,-500.0,0.00015499,2]
[318372275,1710205833750,-500.0,0.00015499,2]
[318372276,1710205833759,-500.0,0.00015499,2]
[318372277,1710205833769,-500.0,0.00015499,2]
[318372278,1710205833778,-500.0,0.00015499,2]
[318372279,1710205833787,-500.0,0.00015499,2]
[318372280,1710205833797,-500.0,0.00015499,2]
[318372281,1710205833806,-500.0,0.00015499,2]
[318372282,1710205833816,-500.0,0.00015499,2]
[318372283,1710205833826,-500.0,0.00015499,2]
[318372284,1710205833836,-500.0,0.00015499,2]
[318372285,1710205833845,-500.0,0.00015499,2]
[318372286,1710205833855,-500.0,0.00015499,2]
[318372287,1710205833864,-500.0,0.00015499,2]
[318372288,1710205833874,-500.0,0.00015499,2]
[318372289,1710205833883,-195.8126,0.00015499,2]
[318372290,1710205833893,-500.0,0.00015499,2]
[318372291,1710205833903,-256.79566452,0.00015499,2]
[318372292,1710205833913,-35693.18142439,0.000155,2]
[318372308,1710205838710,-45458.69652426,0.000155,2]
[318372309,1710205838722,-760146.65147731,0.000155,2]
[318372310,1710205838734,-5278.26983247,0.000155,2]
[318372311,1710205838746,-269.36598946,0.000155,2]
[318372313,1710205838757,-839.12430165,0.000155,2]
[318372399,1710205843729,-11502.3818194,0.000155,2]
[318372401,1710205843801,-8225.57304999,0.000155,2]
[318372402,1710205843815,-6307.674912,0.000155,2]
[318372403,1710205843826,-1457.58847713,0.000155,2]
[318372404,1710205843838,-7761.25911661,0.000155,2]
[318372405,1710205843849,-4722.52030067,0.000155,2]
[318372406,1710205843861,-55526.23193859,0.000155,2]
[318372450,1710207031876,-170.86972871,0.00013921,2]
[318372452,1710207031886,-1607.01234217,0.00013921,2]
[318372454,1710207031895,-4983.9792589,0.00013922,2]
[318372457,1710207031912,-8944.9957178,0.00013922,2]
[318372459,1710207031922,-1404.76457002,0.00014107,2]
[318372463,1710207031952,-1595.23542998,0.00014107,2]
[318372465,1710207031961,-250.0,0.00014124,2]
[318372467,1710207031970,-216.052246,0.00014266,2]
[318372469,1710207031979,-623.55445192,0.00015301,2]
[318372470,1710207031988,-2316.88986056,0.00015399,2]
[318372471,1710207031997,-164.96638708,0.000154,2]
[318372472,1710207032006,-368.75584483,0.000154,2]
[318372473,1710207032015,-20504.55331016,0.00015496,2]
[318372474,1710207032024,-167.15043478,0.00015498,2]
[318372475,1710207032033,-155.4066285,0.00015498,2]
[318372476,1710207032042,-155.55648964,0.00015498,2]
[318372477,1710207032051,-155.17228613,0.00015498,2]
[318372478,1710207032060,-1809.38057452,0.00015499,2]
[318372479,1710207032069,-500.0,0.00015499,2]
[318372480,1710207032079,-500.0,0.00015499,2]
[318372481,1710207032088,-500.0,0.00015499,2]
[318372482,1710207032097,-500.0,0.00015499,2]
[318372483,1710207032106,-500.0,0.00015499,2]
[318372484,1710207032115,-500.0,0.00015499,2]
[318372485,1710207032124,-500.0,0.00015499,2]
[318372486,1710207032134,-616.93,0.00015499,2]
[318372487,1710207032143,-500.0,0.00015499,2]
[318372488,1710207032152,-500.0,0.00015499,2]
[318372489,1710207032161,-500.0,0.00015499,2]
[318372490,1710207032170,-500.0,0.00015499,2]
[318372491,1710207032180,-500.0,0.00015499,2]
[318372492,1710207032189,-500.0,0.00015499,2]
[318372493,1710207032198,-500.0,0.00015499,2]
[318372494,1710207032208,-500.0,0.00015499,2]
[318372495,1710207032217,-500.0,0.00015499,2]
[318372496,1710207032226,-500.0,0.00015499,2]
[318372497,1710207032236,-500.0,0.00015499,2]
[318372498,1710207032245,-500.0,0.00015499,2]
[318372499,1710207032254,-500.0,0.00015499,2]
[318372500,1710207032264,-500.0,0.00015499,2]